fUST/lending_fUST_20240526
["ID","MTS","AMOUNT","RATE_DAILY","PERIOD"]
[327928954,1716657038189,-10450.9217985,0.00011876,2]
[327928955,1716657038201,-7941.6828304,0.00011876,2]
[327928974,1716657043132,-6507.3953711,0.00011876,2]
[327928975,1716657043142,-150.0,0.00012045,2]
[327928976,1716657043151,-12.22549978,0.00013699,2]
[327928978,1716657043490,-296.91925322,0.00013699,2]
[327928979,1716657043499,-313.56494678,0.00014,2]
[327928981,1716657043512,-608.37641602,0.00014,2]
[327928983,1716657043522,-283.86669786,0.00014998,2]
[327928984,1716657043532,-154.87609912,0.00015,2]
[327928985,1716657043542,-2403.8060941,0.00015,2]
[327928987,1716657043552,-18056.32720634,0.00015,2]
[327928990,1716657043573,-3604.23154834,0.00015,2]
[327928996,1716657046548,-2679.56412785,0.00014999,2]
[327928997,1716657046558,-521.0,0.00014999,2]
[327928998,1716657046567,-16108.38772081,0.00015,2]
[327929070,1716658238406,-521.0,9.999e-05,2]
[327929071,1716658238417,-1137.49756825,0.0001,2]
[327929072,1716658238427,-813.84,0.00010959,2]
[327929073,1716658238436,-24900.0,0.00013524,2]
[327929074,1716658238446,-1887.09090683,0.00013599,2]
[327929075,1716658238456,-309.144753,0.00013699,2]
[327929076,1716658238466,-283.86669786,0.000137,2]
[327929078,1716658238476,-921.9413628,0.00014,2]
[327929080,1716658238486,-2279.90231668,0.00014554,2]
[327929082,1716658238499,-1087.05446948,0.00014554,2]
[327929207,1716658244232,-154.87609912,0.00014553,2]
[327929208,1716658244243,-860.37687273,0.00014554,2]
[327929209,1716658244253,-154.87609912,0.0001485,2]
[327929210,1716658244264,-7545.40738427,0.00015,2]
[327929212,1716658244668,-155.2086528,0.00014552,2]
[327929213,1716658244678,-12737.86907344,0.00015,2]
[327929214,1716658244693,-8245.71407133,0.00015,2]
[327929219,1716658248551,-195.15346613,0.00014552,2]
[327929220,1716658248561,-13702.06299547,0.00015,2]
[327929221,1716658248572,-3633.92034182,0.00015,2]
[327929222,1716658248582,-154.87609912,0.00015,2]
[327929223,1716658248592,-154.87609912,0.00015,2]
[327929224,1716658248602,-943.54638398,0.00015,2]
[327929225,1716658248611,-190.10124897,0.000156,2]
[327929226,1716658248621,-1887.0909068,0.00016403,2]
[327929227,1716658248631,-274.71288917,0.000165,2]
[327929228,1716658248641,-160.80712366,0.00017799,2]
[327929229,1716658248651,-10461.69717638,0.00017898,2]
[327929230,1716658248661,-8658.34607123,0.00018,2]
[327929434,1716659443183,-521.0,9.999e-05,2]
[327929435,1716659443193,-1137.49756825,0.0001,2]
[327929436,1716659443203,-921.9413628,0.00014999,2]
[327929437,1716659443216,-1569.4348472,0.00015,2]
[327929438,1716659443234,-943.54638398,0.00015,2]
[327929439,1716659443244,-8785.92688794,0.00015,2]
[327929440,1716659443254,-27878.17664821,0.00015578,2]
[327929448,1716659443965,-154.8915759,0.00015,2]
[327929449,1716659443974,-149.2414151,0.00015578,2]
[327929450,1716659444178,-5857.47526549,0.00015578,2]
[327929637,1716660638057,-521.0,9.999e-05,2]
[327929638,1716660638068,-1137.49756825,0.0001,2]
[327929639,1716660638077,-714.13,0.00010959,2]
[327929640,1716660638087,-155.83233541,0.00013733,2]
[327929660,1716660643343,-1134.342098,0.00013733,2]
[327929735,1716661832341,-521.0,9.999e-05,2]
[327929737,1716661832351,-149.80087435,0.0001,2]
[327929742,1716661832584,-987.6966939,0.0001,2]
[327929744,1716661832594,-357.06,0.00010959,2]
[327929746,1716661832603,-5875.7051713,0.00012549,2]
[327929748,1716661832614,-974.56370931,0.00012549,2]
[327929798,1716661838357,-899.40563667,0.00012549,2]
[327929799,1716661838369,-13843.6,0.00012549,2]
[327929863,1716661846618,-2819.09481677,0.00012549,2]
[327929864,1716662047031,163.144751,0.00027671,120]
[327929903,1716663032847,-529.00220034,9.956e-05,2]
[327929906,1716663032857,-1351.7350257,9.956e-05,2]
[327929909,1716663032867,-521.0,9.957e-05,2]
[327929912,1716663032876,-502.34378655,0.00011574,2]
[327929917,1716663032891,-24397.65621345,0.00011574,2]
[327929919,1716663032901,-4227.33365889,0.00012102,2]
[327929921,1716663032910,-769.10278981,0.00012287,2]
[327929923,1716663032919,-1607.31159875,0.000129,2]
[327929925,1716663032929,-153.0,0.00013241,2]
[327929927,1716663032939,-153.0,0.00013264,2]
[327929928,1716663032949,-921.9413628,0.00014,2]
[327929930,1716663032958,-153.0,0.00014,2]
[327929931,1716663032967,-153.0,0.00014,2]
[327929933,1716663032977,-306.0,0.00014041,2]
[327929934,1716663032986,-153.0,0.00014166,2]
[327929936,1716663032995,-346.9145269,0.00014166,2]
[327929938,1716663033005,-153.0,0.00014223,2]
[327929940,1716663033014,-153.0,0.00014223,2]
[327929941,1716663033024,-153.0,0.00014223,2]
[327929943,1716663033033,-153.0,0.00014223,2]
[327929944,1716663033043,-153.0,0.00014223,2]
[327929946,1716663033052,-943.54638398,0.00015,2]
[327929948,1716663033061,-1607.31159874,0.00015192,2]
[327929950,1716663033071,-1066.78512202,0.00015422,2]
[327929952,1716663033080,-223.35933546,0.00015576,2]
[327929954,1716663033090,-1098.07618172,0.00015577,2]
[327929956,1716663033099,-190.10124897,0.000156,2]
[327929958,1716663033108,-151.0,0.00016382,2]
[327929960,1716663033118,-151.0,0.00016382,2]
[327929961,1716663033127,-151.0,0.00016382,2]
[327929963,1716663033136,-151.0,0.00016382,2]
[327929965,1716663033146,-151.0,0.00016382,2]
[327929967,1716663033155,-191.175293,0.00016382,2]
[327929968,1716663033164,-151.0,0.00016382,2]
[327929969,1716663033174,-151.0,0.00016382,2]
[327929970,1716663033184,-284.17567,0.00016382,2]
[327929971,1716663033194,-225.827066,0.00016382,2]
[327929972,1716663033203,-151.0,0.00016382,2]
[327929973,1716663033213,-151.0,0.00016382,2]
[327929974,1716663033222,-151.0,0.00016382,2]
[327929975,1716663033231,-151.0,0.00016382,2]
[327929976,1716663033240,-151.0,0.00016382,2]
[327929977,1716663033249,-151.884806,0.00016382,2]
[327929978,1716663033259,-151.0,0.00016382,2]
[327929979,1716663033274,-151.0,0.00016382,2]
[327929980,1716663033283,-141.25714325,0.00016382,2]
[327930013,1716663038624,-9.74285675,0.00016382,2]
[327930015,1716663038633,-151.0,0.00016382,2]
[327930017,1716663038643,-151.0,0.00016382,2]
[327930019,1716663038653,-151.0,0.00016382,2]
[327930020,1716663038663,-36.16331853,0.00016382,2]
[327930025,1716663038781,-114.83668147,0.00016382,2]
[327930027,1716663038791,-151.0,0.00016382,2]
[327930029,1716663038800,-278.24594851,0.00016383,2]
[327930031,1716663038810,-269.43312445,0.00016383,2]
[327930033,1716663038819,-155.30913095,0.00016383,2]
[327930035,1716663038829,-154.90705577,0.00016383,2]
[327930037,1716663038838,-442.75883193,0.00016383,2]
[327930039,1716663038848,-155.11627612,0.00016383,2]
[327930041,1716663038857,-657.24867269,0.00016383,2]
[327930043,1716663038867,-155.21411118,0.00016383,2]
[327930045,1716663038876,-155.67240172,0.00016383,2]
[327930047,1716663038885,-155.17693954,0.00016383,2]
[327930049,1716663038894,-155.17961982,0.00016383,2]
[327930051,1716663038904,-232.20003553,0.00016383,2]
[327930052,1716663038913,-155.17279527,0.00016383,2]
[327930054,1716663038923,-155.38635448,0.00016383,2]
[327930056,1716663038932,-155.85879984,0.00016383,2]
[327930058,1716663038941,-721.20812959,0.00016384,2]
[327930060,1716663038950,-51058.204313,0.00016385,2]
[327930063,1716663038962,-864.42712458,0.00016385,2]
[327930064,1716663038972,-151.0,0.00016385,2]
[327930067,1716663038981,-301.305457,0.00016385,2]
[327930068,1716663038990,-208.098428,0.00016385,2]
[327930070,1716663039000,-151.0,0.00016385,2]
[327930072,1716663039009,-151.0,0.00016385,2]
[327930074,1716663039021,-227.694162,0.00016385,2]
[327930076,1716663039031,-151.0,0.00016385,2]
[327930078,1716663039040,-155.149692,0.00016385,2]
[327930080,1716663039050,-151.0,0.00016385,2]
[327930081,1716663039059,-189.933802,0.00016385,2]
[327930083,1716663039069,-151.0,0.00016385,2]
[327930085,1716663039079,-151.0,0.00016385,2]
[327930087,1716663039088,-151.0,0.00016438,2]
[327930089,1716663039098,-151.0,0.00016438,2]
[327930091,1716663039108,-274.71288917,0.000165,2]
[327930093,1716663039118,-151.0,0.0001666,2]
[327930095,1716663039128,-151.0,0.00016802,2]
[327930097,1716663039137,-231.796785,0.00016802,2]
[327930099,1716663039147,-205.414735,0.00016802,2]
[327930101,1716663039157,-151.0,0.00016802,2]
[327930102,1716663039168,-151.0,0.00016802,2]
[327930103,1716663039178,-151.0,0.00016802,2]
[327930104,1716663039188,-592.0,0.00017,2]
[327930105,1716663039198,-153.0,0.00017043,2]
[327930106,1716663039209,-153.0,0.00017043,2]
[327930107,1716663039219,-307.5458463,0.00017043,2]
[327930108,1716663039230,-153.0,0.00017043,2]
[327930109,1716663039397,-153.0,0.00017043,2]
[327930110,1716663039408,-153.0,0.00017043,2]
[327930111,1716663039418,-153.0,0.00017043,2]
[327930112,1716663039428,-153.0,0.00017043,2]
[327930113,1716663039438,-175.72107895,0.00017233,2]
[327930123,1716663042739,-28.94591855,0.00017233,2]
[327930124,1716663042749,-204.6669975,0.00017233,2]
[327930125,1716663042759,-204.6669975,0.0001726,2]
[327930126,1716663042768,-105.50469946,0.00017333,2]
[327930131,1716663043529,-524.4677673,0.00017333,2]
[327930132,1716663043539,-159.46892432,0.0001782,2]
[327930133,1716663043549,-109.1073017,0.0001782,2]
[327930150,1716663043905,-41.8926983,0.0001782,2]
[327930152,1716663044043,-151.0,0.0001782,2]
[327930154,1716663044118,-151.0,0.0001782,2]
[327930157,1716663044240,-138.55822514,0.0001782,2]
[327930524,1716664231970,-521.0,9.859e-05,2]
[327930525,1716664231980,-201.8066719,9.86e-05,2]
[327930527,1716664231990,-220.80477812,0.00014,2]
[327930592,1716664238124,-701.13658468,0.00014,2]
[327930594,1716664238134,-5339.48341193,0.0001466,2]
[327930596,1716664238145,-3798.357,0.0001466,2]
[327930882,1716664242900,-1432.28524259,0.0001466,2]
[327930911,1716664246110,-14329.87434548,0.0001466,2]
[327930912,1716664246120,-943.54638398,0.00015,2]
[327930913,1716664246131,-190.10124897,0.000156,2]
[327930914,1716664246141,-1205.48369909,0.00016181,2]
[327930915,1716664246151,-6613.05904597,0.0001628,2]
[327930916,1716664246160,-8992.25204545,0.00016281,2]
[327930917,1716664246170,-274.71288917,0.000165,2]
[327930918,1716664246180,-204.6669975,0.00017043,2]
[327930919,1716664246189,-409.2943979,0.00017043,2]
[327930920,1716664246199,-408.6436944,0.00017043,2]
[327930921,1716664246208,-204.6669975,0.00017043,2]
[327930922,1716664246220,-204.6669975,0.00017043,2]
[327930923,1716664246230,-204.4259637,0.00017043,2]
[327930924,1716664246240,-204.6669975,0.000171,2]
[327930925,1716664246250,-204.6669975,0.000171,2]
[327930926,1716664246259,-204.6669975,0.00017138,2]
[327930927,1716664246269,-204.6669975,0.00017138,2]
[327930928,1716664246278,-204.6669975,0.00017138,2]
[327930929,1716664246288,-204.6669975,0.00017138,2]
[327930930,1716664246298,-204.6669975,0.00017138,2]
[327930931,1716664246307,-204.6669975,0.00017138,2]
[327930932,1716664246316,-204.6669975,0.00017138,2]
[327930933,1716664246326,-204.6669975,0.00017138,2]
[327930934,1716664246336,-1358.41984878,0.00017231,2]
[327930935,1716664246345,-4227.33365889,0.00017616,2]
[327930936,1716664246356,-853.42809762,0.00017641,2]
[327930937,1716664246365,-786.13970496,0.00017645,2]
[327930938,1716664246375,-530.64873942,0.00017819,2]
[327930939,1716664246385,-154.8915759,0.0001782,2]
[327930940,1716664246394,-548.99057638,0.0001782,2]
[327930941,1716664246404,-3633.92034182,0.0001782,2]
[327930942,1716664246414,-154.8915759,0.0001782,2]
[327930943,1716664246423,-10461.69717638,0.00017898,2]
[327930944,1716664246433,-151.0,0.00017898,2]
[327930945,1716664246442,-160.658474,0.00017898,2]
[327930946,1716664246452,-151.0,0.00017898,2]
[327930947,1716664246461,-151.0,0.00017898,2]
[327930948,1716664246470,-156.844838,0.00017898,2]
[327930949,1716664246480,-179.74947435,0.000179,2]
[327930950,1716664246489,-213.29936282,0.00017999,2]
[327930951,1716664246499,-7042.33331225,0.00018,7]
[327930952,1716664246508,-896.44226485,0.00018,2]
[327930953,1716664246518,-43884.27103124,0.00018,2]
[327930954,1716664246527,-151.0,0.00018,2]
[327930955,1716664246537,-151.0,0.00018,2]
[327930956,1716664246546,-151.0,0.00018,2]
[327930957,1716664246556,-151.0,0.00018,2]
[327930958,1716664246565,-151.0,0.00018,2]
[327930959,1716664246574,-151.0,0.00018,2]
[327930960,1716664246583,-151.0,0.00018,2]
[327930961,1716664246594,-298.23537721,0.00018,2]
[327930962,1716664246603,-179.74947433,0.0001815,2]
[327930963,1716664246613,-620.49862334,0.00018199,2]
[327930964,1716664246622,-786.13970495,0.00018223,2]
[327930965,1716664246632,-227.54112786,0.000183,2]
[327930966,1716664246641,-179.74947433,0.000184,2]
[327930967,1716664246651,-151.0,0.00018463,2]
[327930968,1716664246660,-154.87609912,0.00018561,2]
[327930969,1716664246670,-13283.79588379,0.00018563,2]
[327930970,1716664246679,-151.0,0.00018563,2]
[327930971,1716664246689,-163.441774,0.00018563,2]
[327930972,1716664246698,-151.0,0.00018563,2]
[327930973,1716664246707,-5144.14667492,0.00018601,2]
[327930974,1716664246717,-1205.48369905,0.00018616,2]
[327930975,1716664246726,-257.131402,0.0001865,2]
[327930976,1716664246737,-179.74947433,0.0001865,2]
[327930977,1716664246747,-188.0,0.00018769,2]
[327930978,1716664246756,-786.13970495,0.000188,2]
[327930979,1716664246768,-4242.30926626,0.00018869,2]
[327930980,1716664246777,-2000.0,0.00018869,2]
[327930981,1716664246786,-19471.67944164,0.000189,7]
[327930982,1716664246798,-4542.24839344,0.000189,2]
[327930983,1716664246807,-80537.21495756,0.000189,2]
[327930984,1716664246816,-179.74947433,0.000189,2]
[327930985,1716664246826,-89246.6190079,0.00018969,2]
[327930986,1716664246836,-155.47314599,0.00019,2]
[327930987,1716664246846,-950.35910655,0.00019,2]
[327930988,1716664246856,-12284.44271607,0.00019,2]
[327930989,1716664246868,-1562.84300676,0.00019,2]
[327931046,1716665432272,-521.0,9.999e-05,2]
[327931048,1716665432282,-943.54638398,0.00015397,2]
[327931050,1716665432292,-190.10124897,0.000156,2]
[327931052,1716665432301,-201.147664,0.00015662,2]
[327931054,1716665432311,-2998.00470305,0.00016147,2]
[327931056,1716665432324,-1103.44676135,0.00016147,2]
[327931192,1716665438312,-1148.725005,0.00016147,2]
[327931193,1716665438326,-1089.4560012,0.00016147,2]
[327931194,1716665438338,-18560.3675294,0.00016147,2]
[327931195,1716665438347,-274.71288917,0.000165,2]
[327931196,1716665438356,-175.69420049,0.0001709,2]
[327931197,1716665438366,-10461.69717638,0.00017898,2]
[327931198,1716665438376,-951.58958123,0.000179,2]
[327931199,1716665438386,-896.44226485,0.00018,2]
[327931200,1716665438396,-21840.50976095,0.00018,2]
[327931201,1716665438408,-1023.19544633,0.00018,2]
[327931202,1716665438418,-620.02493156,0.00018154,2]
[327931203,1716665438427,-834.86906211,0.00018217,2]
[327931204,1716665438437,-2177.98605443,0.000188,2]
[327931205,1716665438447,-197.1730597,0.000188,2]
[327931206,1716665438457,-854.58673875,0.0001881,2]
[327931207,1716665438467,-288.2118729,0.0001881,2]
[327931208,1716665438477,-4227.33365889,0.00018837,2]
[327931209,1716665438487,-3845.9480518,0.000189,2]
[327931210,1716665438497,-211.69,0.0001899,3]
[327931211,1716665438506,-635.09,0.0001899,3]
[327931212,1716665438516,-999.53037199,0.00019,2]
[327931213,1716665438529,-20758.7,0.00019,2]
[327931214,1716665438541,-1377.48390518,0.00019,2]
[327931215,1716665438551,-309.47389438,0.00019,2]
[327931216,1716665438560,-154.8915759,0.00019,2]
[327931217,1716665438570,-548.99057638,0.00019,2]
[327931218,1716665438580,-3633.92034182,0.00019,2]
[327931219,1716665438590,-154.8915759,0.00019,2]
[327931220,1716665438599,-374.68362451,0.00019,2]
[327931221,1716665438609,-620.00124658,0.00019061,2]
[327931222,1716665438619,-344.26325936,0.00019075,2]
[327931225,1716665442667,-346.03,0.00016722,2]
[327931302,1716665443818,-21032.33109637,0.00016722,2]
[327931305,1716665444244,-3521.63890363,0.00016722,2]
[327931306,1716665444256,-1373.36058678,0.00019075,2]
[327931307,1716665444266,-155.11527925,0.00019075,2]
[327931308,1716665444276,-302.77310803,0.00019075,2]
[327931309,1716665444285,-155.38338781,0.00019075,2]
[327931310,1716665444295,-2635.15875922,0.00019075,2]
[327931311,1716665444305,-455.56419663,0.00019075,2]
[327931312,1716665444314,-6888.19540356,0.00019075,2]
[327931344,1716666560156,-636.23739,7.623e-05,2]
[327931366,1716666632352,-690.85461678,7.614e-05,2]
[327931368,1716666632362,-154.86062544,7.615e-05,2]
[327931370,1716666632371,-156.60501741,7.615e-05,2]
[327931372,1716666632381,-395.68345474,7.615e-05,2]
[327931374,1716666632390,-1895.27931477,7.616e-05,2]
[327931376,1716666632400,-1899.42263675,7.616e-05,2]
[327931378,1716666632409,-154.86062544,7.616e-05,2]
[327931380,1716666632418,-523.11398542,7.617e-05,2]
[327931382,1716666632427,-2109.2942352,7.617e-05,2]
[327931384,1716666632436,-1351.7350257,7.617e-05,2]
[327931386,1716666632445,-316.61744386,7.617e-05,2]
[327931388,1716666632455,-261.34125049,7.618e-05,2]
[327931390,1716666632463,-239.00629442,7.618e-05,2]
[327931392,1716666632472,-154.86062544,7.618e-05,2]
[327931394,1716666632482,-215.87394328,7.619e-05,2]
[327931396,1716666632491,-154.87609912,7.619e-05,2]
[327931398,1716666632500,-154.86062544,7.619e-05,2]
[327931400,1716666632509,-175.75673806,7.619e-05,2]
[327931402,1716666632521,-158.67086264,7.619e-05,2]
[327931404,1716666632530,-410.85900029,7.62e-05,2]
[327931406,1716666632539,-772.8946628,7.62e-05,2]
[327931408,1716666632548,-154.87609912,7.62e-05,2]
[327931409,1716666632559,-720.62329532,7.62e-05,2]
[327931412,1716666632568,-371.5441297,7.62e-05,2]
[327931413,1716666632577,-551.16749439,7.621e-05,2]
[327931415,1716666632586,-285.31097948,7.621e-05,2]
[327931417,1716666632595,-455.85517438,7.621e-05,2]
[327931420,1716666632607,-154.87609912,7.622e-05,2]
[327931422,1716666632616,-1044.16152536,7.627e-05,2]
[327931424,1716666632626,-230.5616504,7.628e-05,2]
[327931425,1716666632635,-154.8915759,8.461e-05,2]
[327931427,1716666632644,-24900.0,8.462e-05,2]
[327931429,1716666632653,-545.61298739,9.129e-05,2]
[327931431,1716666632663,-916.83852641,9.861e-05,2]
[327931433,1716666632671,-703.25759255,9.863e-05,2]
[327931435,1716666632681,-154.87609912,9.866e-05,2]
[327931437,1716666632690,-1340.12846768,9.875e-05,2]
[327931440,1716666632701,-2062.08131468,9.899e-05,2]
[327931442,1716666632710,-7173.33546272,9.995e-05,2]
[327931444,1716666632722,-8059.56284813,9.995e-05,2]
[327931446,1716666632731,-282.25,0.00010959,2]
[327931448,1716666632740,-235.21,0.00010959,2]
[327931450,1716666632749,-196.01,0.00010959,2]
[327931452,1716666632758,-163.34,0.00010959,2]
[327931454,1716666632767,-816.71,0.00010959,2]
[327931456,1716666632777,-154.87609912,0.00011038,2]
[327931458,1716666632787,-931.89299129,0.000129,2]
[327931460,1716666632796,-931.89299126,0.000129,2]
[327931462,1716666632807,-943.54638398,0.00015,2]
[327931464,1716666632815,-1098.07618172,0.00015,2]
[327931466,1716666632825,-1685.866742,0.00015,2]
[327931468,1716666632834,-496.0,0.00015219,2]
[327931470,1716666632843,-190.10124897,0.000156,2]
[327931472,1716666632852,-931.89299126,0.00015941,2]
[327931474,1716666632861,-274.71288917,0.000165,2]
[327931475,1716666632870,-197.1730597,0.000168,2]
[327931477,1716666632879,-151.99986026,0.000169,2]
[327931479,1716666632888,-151.99986026,0.000169,2]
[327931481,1716666632898,-10461.69717638,0.00017898,2]
[327931483,1716666632908,-22863.70520728,0.00018,2]
[327931485,1716666632917,-896.44226485,0.00018,2]
[327931487,1716666632926,-2636.83525359,0.00018114,2]
[327931489,1716666632936,-921.28647666,0.0001812,2]
[327931491,1716666632945,-600.0,0.00018411,2]
[327931493,1716666632954,-4227.33365889,0.00018651,2]
[327931495,1716666632962,-291.6770573,0.00018824,2]
[327931497,1716666632971,-291.6770573,0.00018824,2]
[327931499,1716666632980,-291.6770573,0.00018824,2]
[327931501,1716666632989,-291.6770573,0.00018824,2]
[327931503,1716666632998,-291.6770573,0.00018824,2]
[327931505,1716666633007,-291.6770573,0.00018824,2]
[327931507,1716666633016,-291.6770573,0.00018824,2]
[327931509,1716666633025,-157.9676961,0.00018824,2]
[327931511,1716666633035,-3529.57543634,0.00018874,2]
[327931513,1716666633044,-683.669391,0.00018884,2]
[327931515,1716666633053,-3045.11160884,0.000189,2]
[327931517,1716666633062,-309.64391027,0.00018974,2]
[327931519,1716666633071,-309.65937778,0.00018974,2]
[327931521,1716666633080,-2000.0,0.00018976,2]
[327931523,1716666633090,-1518.00894173,0.00019,2]
[327931525,1716666633099,-312.23635376,0.00019,2]
[327931526,1716666633108,-9106.359666,0.00019073,2]
[327931528,1716666633118,-1151.84012163,0.00019073,2]
[327931531,1716666633127,-3521.16665612,0.00019074,7]
[327931533,1716666633136,-319.06966249,0.00019074,2]
[327931534,1716666633145,-156.09000191,0.00019074,2]
[327931536,1716666633154,-269.0,0.00019074,2]
[327931537,1716666633163,-189.54540557,0.00019074,2]
[327931539,1716666633173,-11006.67286779,0.00019074,2]
[327931541,1716666633182,-2031.9,0.00019074,2]
[327931543,1716666633191,-154.87609912,0.00019074,2]
[327931544,1716666633200,-154.87609912,0.00019075,2]
[327931545,1716666633209,-154.87609912,0.00019075,2]
[327931547,1716666633219,-1238.17909292,0.00019075,2]
[327931549,1716666633227,-228.81451,0.00019075,2]
[327931551,1716666633237,-286.02409029,0.00019075,2]
[327931553,1716666633246,-151.0,0.00019075,2]
[327931555,1716666633255,-151.0,0.00019075,2]
[327931557,1716666633264,-151.0,0.00019075,2]
[327931558,1716666633274,-151.0,0.00019075,2]
[327931560,1716666633284,-151.0,0.00019075,2]
[327931562,1716666633293,-17051.19728051,0.00019075,2]
[327931564,1716666633302,-9735.83972083,0.00019076,7]
[327931566,1716666633313,-282.119892,0.00019076,2]
[327931568,1716666633322,-151.0,0.00019076,2]
[327931570,1716666633331,-191.342098,0.00019076,2]
[327931572,1716666633340,-151.0,0.00019076,2]
[327931573,1716666633349,-151.0,0.00019076,2]
[327931576,1716666633360,-151.0,0.00019076,2]
[327931577,1716666633369,-151.0,0.00019076,2]
[327931579,1716666633379,-151.0,0.00019076,2]
[327931581,1716666633388,-151.0,0.00019076,2]
[327931583,1716666633398,-151.0,0.00019076,2]
[327931585,1716666633407,-151.0,0.00019076,2]
[327931587,1716666633416,-151.0,0.00019076,2]
[327931589,1716666633425,-151.0,0.00019076,2]
[327931591,1716666633435,-235.631067,0.00019076,2]
[327931593,1716666633444,-235.631067,0.00019076,2]
[327931595,1716666633453,-235.631067,0.00019076,2]
[327931597,1716666633463,-235.631067,0.00019076,2]
[327931599,1716666633472,-151.0,0.00019076,2]
[327931601,1716666633482,-158.61526417,0.00019076,2]
[327931603,1716666633491,-513.39404903,0.00019076,2]
[327931605,1716666633500,-181.49361007,0.00019076,2]
[327931607,1716666633509,-175.27186316,0.00019076,2]
[327931609,1716666633519,-155.02480397,0.00019076,2]
[327931611,1716666633532,-194.84501221,0.00019076,2]
[327931613,1716666633541,-156.53311596,0.00019076,2]
[327931615,1716666633550,-309.53572423,0.00019076,2]
[327931617,1716666633559,-6229.35298755,0.00019076,2]
[327931618,1716666633569,-835.13669849,0.00019076,2]
[327931620,1716666633578,-194.346415,0.00019076,2]
[327931622,1716666633587,-1495.85240502,0.00019076,2]
[327931624,1716666633598,-5553.9884539,0.00019076,2]
[327931625,1716666633607,-309.79736396,0.00019076,2]
[327931626,1716666633617,-155.08099165,0.00019076,2]
[327931627,1716666633627,-770.39170798,0.00019076,2]
[327931628,1716666633636,-289.01458874,0.00019076,2]
[327931629,1716666633646,-672.0177029,0.00019076,2]
[327931630,1716666633655,-309.36064824,0.00019076,2]
[327931631,1716666633664,-7420.7501235,0.00019076,2]
[327931632,1716666633673,-295.03397887,0.00019076,2]
[327931633,1716666633682,-1028.36948709,0.00019076,2]
[327931634,1716666633692,-197.47401387,0.00019076,2]
[327931635,1716666633701,-2591.61103843,0.00019076,2]
[327931636,1716666633711,-1907.6585678,0.00019076,2]
[327931637,1716666633720,-1402.22943905,0.00019076,2]
[327931638,1716666633729,-156.42621408,0.00019076,2]
[327931639,1716666633739,-309.64391027,0.00019076,2]
[327931640,1716666633748,-310.57920608,0.00019076,2]
[327931641,1716666633757,-474.82276577,0.00019076,2]
[327931642,1716666633766,-527.79545336,0.00019076,2]
[327931643,1716666633775,-309.62731609,0.00019076,2]
[327931644,1716666633784,-155.0418613,0.00019076,2]
[327931645,1716666633794,-155.02628739,0.00019076,2]
[327931646,1716666633804,-1017.55041812,0.00019077,2]
[327931647,1716666633813,-151.0,0.00019078,2]
[327931648,1716666633822,-151.0,0.00019078,2]
[327931649,1716666633831,-151.0,0.00019078,2]
[327931650,1716666633841,-151.0,0.00019078,2]
[327931651,1716666633851,-151.0,0.00019078,2]
[327931652,1716666633860,-151.0,0.00019078,2]
[327931653,1716666633869,-151.0,0.00019078,2]
[327931654,1716666633878,-151.0,0.00019078,2]
[327931655,1716666633887,-151.0,0.00019078,2]
[327931656,1716666633897,-197.17305969,0.00019078,2]
[327931657,1716666633906,-151.0,0.00019078,2]
[327931658,1716666633915,-151.0,0.00019078,2]
[327931659,1716666633925,-151.0,0.00019078,2]
[327931660,1716666633934,-235.631067,0.00019078,2]
[327931661,1716666633943,-235.631067,0.00019078,2]
[327931662,1716666633953,-5801.58634263,0.00019078,2]
[327931663,1716666633963,-154.90705577,0.00019175,2]
[327931664,1716666633973,-3065.00544058,0.00019175,2]
[327931665,1716666633983,-39.71895353,0.00019178,2]
[327931666,1716666633992,-454.12807143,0.00019178,2]
[327931667,1716666634001,-500.0,0.00019178,2]
[327931668,1716666634011,-500.0,0.00019178,2]
[327931669,1716666634020,-500.0,0.00019178,2]
[327931670,1716666634030,-2719.21985546,0.00019178,2]
[327931671,1716666634039,-500.0,0.00019178,2]
[327931672,1716666634049,-500.0,0.00019178,2]